fUSD/lending_fUSD_20260227
["ID","MTS","AMOUNT","RATE_DAILY","PERIOD"]
[406851270,1772232641443,-188.67,0.000439,14]
[406851271,1772232641453,-160.0,0.00044,120]
[406851272,1772232641461,-1008.05132233,0.00044067,14]
[406851273,1772232641471,-309.15,0.000441,30]
[406851274,1772232641480,-500.0,0.00044109,120]
[406851275,1772232641489,-500.0,0.00044109,120]
[406851276,1772232641499,-500.0,0.00044109,120]
[406851277,1772232641508,-500.0,0.00044109,120]
[406851278,1772232641519,-500.0,0.00044109,120]
[406851279,1772232641529,-500.0,0.00044109,120]
[406851280,1772232641541,-500.0,0.00044109,120]
[406851281,1772232641550,-500.0,0.00044109,120]
[406851282,1772232641560,-296.88472817,0.00044109,120]
[406851283,1772232641570,-106110.0,0.00044114,30]
[406851284,1772232641579,-364.76069626,0.00044217,5]
[406851285,1772232641589,-232.75,0.00045,120]
[406851286,1772232641598,-1008.05132233,0.00045233,19]
[406851287,1772232641607,-1989.28424835,0.00045276,17]
[406851288,1772232641617,-155.0,0.000453,120]
[406851289,1772232641626,-150.0,0.000458,120]
[406851290,1772232641635,-207.09,0.000459,14]
[406851291,1772232641644,-2499.05556645,0.00045916,15]
[406851292,1772232641653,-354.09264659,0.00045927,15]
[406851293,1772232641663,-600.0,0.00046133,120]
[406851294,1772232641672,-1473.4196,0.00046276,2]
[406851295,1772232641681,-439.3679,0.00046276,2]
[406851296,1772232641691,-150.0,0.00046276,2]
[406851297,1772232641701,-500.0,0.00046296,120]
[406851298,1772232641711,-313.08922537,0.00046296,120]
[406851299,1772232641720,-484.5,0.00046296,120]
[406851300,1772232641730,-500.0,0.00046296,120]
[406851301,1772232641739,-500.0,0.00046296,120]
[406851302,1772232641748,-500.0,0.00046296,120]
[406851303,1772232641757,-500.0,0.00046296,120]
[406851304,1772232641767,-500.0,0.00046296,120]
[406851305,1772232641776,-500.0,0.00046296,120]
[406851306,1772232641786,-500.0,0.00046296,120]
[406851307,1772232641795,-500.0,0.00046296,120]
[406851308,1772232641805,-500.0,0.00046296,120]
[406851309,1772232641815,-500.0,0.00046296,120]
[406851310,1772232641824,-500.0,0.00046296,120]
[406851311,1772232641833,-500.0,0.00046296,120]
[406851312,1772232641842,-500.0,0.00046296,120]
[406851313,1772232641851,-500.0,0.00046296,120]
[406851314,1772232641860,-500.0,0.00046296,120]
[406851315,1772232641869,-500.0,0.00046296,120]
[406851316,1772232641879,-500.0,0.00046296,120]
[406851317,1772232641888,-500.0,0.00046296,120]
[406851318,1772232641899,-500.0,0.00046296,120]
[406851319,1772232641908,-500.0,0.00046296,120]
[406851320,1772232641919,-500.0,0.00046296,120]
[406851321,1772232641930,-243.41880544,0.00046296,120]
[406851322,1772232641940,-500.0,0.00046296,120]
[406851323,1772232641951,-500.0,0.00046296,120]
[406851324,1772232641961,-500.0,0.00046296,120]
[406851325,1772232641970,-500.0,0.00046296,120]
[406851326,1772232641979,-500.0,0.00046296,120]
[406851327,1772232641989,-500.0,0.00046296,120]
[406851328,1772232641998,-500.0,0.00046296,120]
[406851329,1772232642008,-500.0,0.00046296,120]
[406851330,1772232642017,-500.0,0.00046296,120]
[406851331,1772232642026,-500.0,0.00046296,120]
[406851332,1772232642035,-500.0,0.00046296,120]
[406851333,1772232642045,-500.0,0.00046296,120]
[406851334,1772232642054,-500.0,0.00046296,120]
[406851335,1772232642064,-500.0,0.00046296,120]
[406851336,1772232642073,-500.0,0.00046296,120]
[406851337,1772232642082,-396.56905607,0.00046296,120]
[406851338,1772232642092,-263.853609,0.00046296,120]
[406851339,1772232642101,-500.0,0.00046296,120]
[406851340,1772232642110,-500.0,0.00046296,120]
[406851341,1772232642119,-500.0,0.00046296,120]
[406851342,1772232642128,-500.0,0.00046296,120]
[406851343,1772232642137,-502.40000002,0.00046296,120]
[406851344,1772232642146,-260.30068387,0.00046296,120]
[406851345,1772232642156,-500.0,0.00046296,120]
[406851346,1772232642165,-500.0,0.00046296,120]
[406851347,1772232642174,-269.43001723,0.00046296,120]
[406851348,1772232642183,-456.81,0.00046296,120]
[406851349,1772232642192,-150.0,0.00046369,2]
[406851350,1772232642202,-1008.05132233,0.000464,23]
[406851351,1772232642211,-497.04,0.000468,120]
[406851352,1772232642220,-824.624604,0.00047404,2]
[406851353,1772232642230,-1694.813688,0.00047404,2]
[406851354,1772232642239,-1473.4196,0.00047433,2]
[406851355,1772232642249,-439.3679,0.00047433,2]
[406851356,1772232642258,-289.3678,0.00047433,2]
[406851357,1772232642267,-1232.407,0.00047442,80]
[406851358,1772232642277,-150.154,0.00047442,80]
[406851359,1772232642286,-309.15,0.000475,30]
[406851360,1772232642295,-1008.05132233,0.00047567,28]
[406851361,1772232642305,-350.0,0.00047661,2]
[406851362,1772232642315,-155.0,0.000479,120]
[406851363,1772232642324,-100000.0,0.00048,120]
[406851364,1772232642333,-177.0,0.00048,90]
[406851365,1772232642342,-152.8213546,0.00048066,120]
[406851366,1772232642352,-271.51293922,0.00048402,2]
[406851367,1772232642361,-1473.4196,0.0004859,2]
[406851368,1772232642371,-1008.05132233,0.00048733,33]
[406851369,1772232642380,-1026.40829389,0.00049,50]
[406851370,1772232642389,-1149.17634575,0.00049,50]
[406851371,1772232642398,-1034.15607169,0.00049,50]
[406851372,1772232642407,-1092.249655,0.00049,50]
[406851373,1772232642416,-1094.64635995,0.00049,50]
[406851374,1772232642425,-1656.69306115,0.00049,50]
[406851375,1772232642435,-503.03652017,0.00049146,2]
[406851376,1772232642444,-271.51293922,0.00049195,2]
[406851377,1772232642453,-175.0703,0.00049195,120]
[406851378,1772232642463,-175.0703,0.00049395,120]
[406851379,1772232642472,-227.14636742,0.0004949,7]
[406851380,1772232642482,-151.0,0.00049497,120]
[406851381,1772232642491,-20000.0,0.000495,120]
[406851382,1772232642499,-6000.0,0.000495,18]
[406851383,1772232642509,-1200.0,0.000496,18]
[406851384,1772232642519,-1200.0,0.000497,18]
[406851385,1772232642528,-1200.0,0.000498,18]
[406851386,1772232642541,-12070.7258832,0.00049834,2]
[406851387,1772232642554,-13965.8887074,0.00049834,2]
[406851388,1772232642563,-374458.4598874,0.00049834,2]
[406851389,1772232642573,-500.0,0.00049856,60]
[406851390,1772232642583,-500.0,0.00049856,60]
[406851391,1772232642592,-500.0,0.00049856,60]
[406851392,1772232642601,-10000.0,0.000499,2]
[406851393,1772232642611,-1008.05132233,0.000499,38]
[406851394,1772232642620,-354.09264659,0.000499,15]
[406851395,1772232642629,-2499.05556645,0.000499,15]
[406851396,1772232642638,-1200.0,0.000499,18]
[406851397,1772232642647,-272.78593889,0.000499,120]
[406851398,1772232642656,-4241.17186506,0.000499,2]
[406851399,1772232642665,-179.09844544,0.000499,120]
[406851400,1772232642674,-184.0674911,0.000499,120]
[406851401,1772232642683,-1482.7260933,0.000499,120]
[406851402,1772232642693,-164.19616738,0.000499,120]
[406851403,1772232642702,-161.28679942,0.000499,120]
[406851404,1772232642711,-166.68625954,0.000499,120]
[406851405,1772232642721,-185.83262235,0.000499,120]
[406851406,1772232642730,-4757.69741975,0.000499,2]
[406851407,1772232642739,-1191.64965332,0.000499,120]
[406851408,1772232642749,-800.0,0.00049959,18]
[406851409,1772232642759,-800.0,0.00049959,18]
[406851410,1772232642768,-379.00880271,0.00049959,18]
[406851411,1772232642777,-400.0,0.0004997,3]
[406851412,1772232642786,-750.0,0.0004997,3]
[406851413,1772232642796,-227.14636742,0.0004999,7]
[406851414,1772232642805,-151.0,0.00049997,120]
[406851415,1772232642814,-362.19766811,0.00049999,7]
[406851416,1772232642824,-1112.38910811,0.00049999,90]
[406851417,1772232642833,-300.0,0.00049999,30]
[406851418,1772232642843,-300.0,0.00049999,30]
[406851419,1772232642853,-200.0,0.00049999,53]
[406851420,1772232642862,-207.4,0.00049999,53]
[406851421,1772232642871,-215.0738,0.00049999,53]
[406851422,1772232642880,-223.0315306,0.00049999,53]
[406851423,1772232642889,-231.28369723,0.00049999,53]
[406851424,1772232642898,-239.84119403,0.00049999,53]
[406851425,1772232642907,-248.71531821,0.00049999,53]
[406851426,1772232642916,-581.82566772,0.00049999,120]
[406851427,1772232642925,-474.10785913,0.00049999,120]
[406851428,1772232642934,-466.78976178,0.00049999,15]
[406851429,1772232642944,-500.0,0.00049999,120]
[406851430,1772232642953,-500.0,0.00049999,120]
[406851431,1772232642962,-500.0,0.00049999,120]
[406851432,1772232642971,-500.0,0.00049999,120]
[406851433,1772232642980,-500.0,0.00049999,120]
[406851434,1772232642990,-190.21789757,0.00049999,120]
[406851435,1772232642999,-500.0,0.00049999,120]
[406851436,1772232643008,-500.0,0.00049999,120]
[406851437,1772232643017,-500.0,0.00049999,120]
[406851438,1772232643026,-500.0,0.00049999,120]
[406851439,1772232643036,-500.0,0.00049999,120]
[406851440,1772232643045,-500.0,0.00049999,120]
[406851441,1772232643055,-500.0,0.00049999,120]
[406851442,1772232643064,-500.0,0.00049999,120]
[406851443,1772232643074,-281.16250638,0.00049999,120]
[406851444,1772232643083,-500.0,0.00049999,120]
[406851445,1772232643093,-636.31092504,0.00049999,120]
[406851446,1772232643102,-500.0,0.00049999,120]
[406851447,1772232643112,-500.0,0.00049999,120]
[406851449,1772232643121,-500.0,0.00049999,120]
[406851450,1772232643130,-500.0,0.00049999,120]
[406851452,1772232643140,-500.0,0.00049999,120]
[406851453,1772232643149,-500.0,0.00049999,120]
[406851454,1772232643158,-542.58467852,0.00049999,7]
[406851455,1772232643167,-151.0,0.00049999,120]
[406851456,1772232643177,-250.0,0.00049999,120]
[406851457,1772232643186,-151.0,0.00049999,120]
[406851459,1772232643195,-500.0,0.00049999,120]
[406851460,1772232643205,-250.0,0.00049999,120]
[406851461,1772232643214,-151.0,0.00049999,120]
[406851463,1772232643224,-500.0,0.00049999,120]
[406851465,1772232643232,-250.0,0.00049999,120]
[406851466,1772232643241,-151.0,0.00049999,120]
[406851467,1772232643252,-500.0,0.00049999,120]
[406851468,1772232643261,-250.0,0.00049999,120]
[406851469,1772232643270,-151.0,0.00049999,120]
[406851470,1772232643280,-151.0,0.00049999,120]
[406851471,1772232643289,-500.0,0.00049999,120]
[406851472,1772232643299,-250.0,0.00049999,120]
[406851473,1772232643308,-156.60529538,0.00049999,120]
[406851474,1772232643317,-151.0,0.00049999,120]
[406851475,1772232643327,-156.587,0.00049999,120]
[406851476,1772232643336,-250.0,0.00049999,120]
[406851477,1772232643345,-500.0,0.00049999,120]
[406851478,1772232643354,-500.0,0.00049999,120]
[406851479,1772232643363,-151.0,0.00049999,120]
[406851480,1772232643373,-162.380719,0.00049999,120]
[406851481,1772232643382,-250.0,0.00049999,120]
[406851482,1772232643392,-500.0,0.00049999,120]
[406851483,1772232643401,-500.0,0.00049999,120]
[406851484,1772232643411,-168.38880561,0.00049999,120]
[406851485,1772232643420,-500.0,0.00049999,120]
[406851486,1772232643430,-500.0,0.00049999,120]
[406851487,1772232643439,-500.0,0.00049999,120]
[406851488,1772232643448,-500.0,0.00049999,120]
[406851489,1772232643458,-500.0,0.00049999,120]
[406851490,1772232643467,-500.0,0.00049999,120]
[406851491,1772232643476,-6888.0,0.00049999,120]
[406851492,1772232643486,-500.0,0.00049999,120]
[406851493,1772232643495,-500.0,0.00049999,120]
[406851494,1772232643507,-277.41053268,0.00049999,120]
[406851495,1772232643516,-151.0,0.00049999,120]
[406851496,1772232643525,-500.0,0.00049999,120]
[406851497,1772232643536,-500.0,0.00049999,120]
[406851498,1772232643551,-500.0,0.00049999,120]
[406851499,1772232643561,-500.0,0.00049999,120]
[406851500,1772232643569,-151.0,0.00049999,120]
[406851502,1772232643579,-500.0,0.00049999,120]
[406851503,1772232643590,-500.0,0.00049999,120]
[406851504,1772232643601,-500.0,0.00049999,120]
[406851505,1772232643610,-151.0,0.00049999,120]
[406851506,1772232643622,-500.0,0.00049999,120]
[406851507,1772232643631,-500.0,0.00049999,120]
[406851508,1772232643640,-500.0,0.00049999,120]
[406851509,1772232643651,-500.0,0.00049999,120]
[406851510,1772232643662,-500.0,0.00049999,120]
[406851511,1772232643672,-500.0,0.00049999,120]
[406851512,1772232643681,-151.0,0.00049999,120]
[406851513,1772232643692,-500.0,0.00049999,120]
[406851514,1772232643702,-1234.0,0.00049999,120]
[406851515,1772232643711,-500.0,0.00049999,120]
[406851516,1772232643721,-1234.0,0.00049999,120]
[406851517,1772232643731,-500.0,0.00049999,120]
[406851518,1772232643741,-500.0,0.00049999,120]
[406851519,1772232643750,-500.0,0.00049999,120]
[406851520,1772232643760,-1234.0,0.00049999,120]
[406851521,1772232643769,-500.0,0.00049999,120]
[406851522,1772232643778,-500.0,0.00049999,120]
[406851523,1772232643787,-1234.0,0.00049999,120]
[406851525,1772232643796,-500.0,0.00049999,120]
[406851527,1772232643805,-500.0,0.00049999,120]
[406851529,1772232643815,-500.0,0.00049999,120]
[406851530,1772232643825,-500.0,0.00049999,120]
[406851531,1772232643834,-500.0,0.00049999,120]
[406851532,1772232643843,-500.0,0.00049999,120]
[406851533,1772232643852,-151.0,0.00049999,120]
[406851534,1772232643862,-500.0,0.00049999,120]
[406851535,1772232643871,-500.0,0.00049999,120]
[406851536,1772232643881,-151.0,0.00049999,120]
[406851537,1772232643891,-1234.0,0.00049999,120]
[406851538,1772232643901,-500.0,0.00049999,120]
[406851539,1772232643911,-151.0,0.00049999,120]
[406851540,1772232643920,-500.0,0.00049999,120]
[406851541,1772232643929,-916.0,0.00049999,120]
[406851542,1772232643938,-500.0,0.00049999,120]
[406851543,1772232643948,-151.0,0.00049999,120]
[406851544,1772232643957,-500.0,0.00049999,120]
[406851545,1772232643966,-500.0,0.00049999,120]
[406851546,1772232643975,-500.0,0.00049999,120]
[406851547,1772232643985,-151.0,0.00049999,120]
[406851548,1772232643994,-500.0,0.00049999,120]
[406851549,1772232644003,-500.0,0.00049999,120]
[406851550,1772232644013,-151.0,0.00049999,120]
[406851551,1772232644022,-500.0,0.00049999,120]
[406851552,1772232644031,-500.0,0.00049999,120]
[406851553,1772232644040,-151.0,0.00049999,120]
[406851554,1772232644049,-500.0,0.00049999,120]
[406851555,1772232644058,-500.0,0.00049999,120]
[406851556,1772232644068,-151.0,0.00049999,120]
[406851557,1772232644077,-500.0,0.00049999,120]
[406851558,1772232644087,-151.0,0.00049999,120]
[406851559,1772232644097,-151.0,0.00049999,120]
[406851560,1772232644106,-151.0,0.00049999,120]
[406851561,1772232644116,-151.0,0.00049999,120]
[406851562,1772232644125,-500.0,0.00049999,120]
[406851563,1772232644135,-151.0,0.00049999,120]
[406851564,1772232644144,-518.5,0.00049999,120]
[406851565,1772232644154,-151.0,0.00049999,120]
[406851566,1772232644164,-537.6845,0.00049999,120]
[406851567,1772232644173,-251.0,0.00049999,120]
[406851568,1772232644182,-151.0,0.00049999,120]
[406851569,1772232644192,-260.287,0.00049999,120]
[406851570,1772232644201,-151.0,0.00049999,120]
[406851571,1772232644210,-557.5788265,0.00049999,120]
[406851572,1772232644220,-578.20924308,0.00049999,120]
[406851573,1772232644229,-599.60298507,0.00049999,120]
[406851574,1772232644238,-151.0,0.00049999,120]
[406851575,1772232644247,-621.78829552,0.00049999,120]
[406851576,1772232644256,-151.0,0.00049999,120]
[406851577,1772232644266,-644.79446246,0.00049999,120]
[406851578,1772232644275,-668.65185757,0.00049999,120]
[406851579,1772232644285,-613.2620484,0.00049999,120]
[406851580,1772232644294,-693.3919763,0.00049999,120]
[406851581,1772232644303,-958.96054146,0.0005,120]
[406851582,1772232644312,-217.6468244,0.0005,53]
[406851583,1772232644321,-398973.66885579,0.0005,120]
[406851584,1772232644330,-1000000.0,0.0005,120]
[406851585,1772232644340,-500.0,0.0005,120]
[406851586,1772232644349,-164377.20974477,0.0005,120]
[406851587,1772232644589,-782.08232065,0.00010069,2]
[406851588,1772232644599,-150.0,0.00024658,2]
[406851589,1772232644609,-150.0,0.0002589,2]
[406851590,1772232644618,-712.40607935,0.00045,30]
[406851591,1772232644630,-289.09706639,0.00045,30]
[406851592,1772232644641,-1964.74685426,0.00045,30]
[406851593,1772232644650,-1034.66,0.00046296,120]
[406851594,1772232644660,-525.0,0.00046369,60]
[406851595,1772232644670,-841.0,0.00046369,60]
[406851596,1772232644679,-719.04747942,0.00049999,120]
[406851597,1772232644688,-620.0,0.00049999,120]
[406851598,1772232644698,-745.65223616,0.00049999,120]
[406851599,1772232644707,-642.94,0.00049999,120]
[406851600,1772232644716,-666.72878,0.00049999,120]
[406851601,1772232644726,-773.2413689,0.00049999,120]
[406851602,1772232644736,-691.39774486,0.00049999,120]
[406851603,1772232644746,-801.85129955,0.00049999,120]
[406851604,1772232644756,-324.94565365,0.00049999,120]
[406851605,1772232644767,-638.43044903,0.00049999,120]
[406851606,1772232644776,-86922.13222903,0.0005,120]
[406851607,1772232644788,-66743.48840031,0.0005,120]
[406851608,1772232644799,-3034.2195,0.0005,120]
[406851613,1772232646196,-899.14048049,9.969e-05,2]
[406851614,1772232646208,-100.85951951,9.969e-05,2]
[406851615,1772232646218,-229.29599802,0.0004725,30]
[406851616,1772232646256,-477.625,0.0004725,30]
[406851617,1772232646267,-371.095,0.0004725,30]
[406851618,1772232646278,-1042.849535,0.0004725,30]
[406851619,1772232646483,-845.38446698,0.0004725,30]
[406851620,1772232646492,-1261.421552,0.00048999,50]
[406851621,1772232646501,-700.8769661,0.00049613,30]
[406851622,1772232646513,-370.45,0.00049613,30]
[406851623,1772232646554,-643.80513405,0.00049613,30]
[406851625,1772232646592,-746.01789985,0.00049613,30]
[406851626,1772232646602,-282.71243216,0.00049613,30]
[406851627,1772232646613,-1549.15030683,0.00049613,30]
[406851633,1772232664414,300.0,0.00010966,30]
[406851649,1772233348286,-253.16,7.4e-05,2]
[406851650,1772233348312,-250.0,7.432e-05,2]
[406851651,1772233348335,-213.0,7.463e-05,2]
[406851652,1772233348358,-500.0,7.463e-05,2]
[406851653,1772233348381,-250.0,7.552e-05,2]
[406851654,1772233348406,-700.0,7.8e-05,2]
[406851655,1772233348427,-392.90283323,7.888e-05,2]
[406851656,1772233348449,-1500.0,7.9e-05,2]
[406851657,1772233348471,-300.0,7.999e-05,2]
[406851658,1772233348494,-2300.0,8e-05,2]
[406851659,1772233348514,-11324.99856886,8e-05,2]
[406851660,1772233348535,-151.0,8.117e-05,2]
[406851661,1772233348556,-1232.407,8.117e-05,2]
[406851662,1772233348578,-150.154,8.117e-05,2]
[406851663,1772233348604,-2000000.0,8.12e-05,2]
[406851664,1772233348625,-71806.76199791,8.12e-05,2]
[406851668,1772233548734,-1031.40805716,7.9e-05,2]
[406851669,1772233548760,-3989.03237747,7.92e-05,2]
[406851670,1772233548786,-1200.0,7.999e-05,2]
[406851671,1772233548813,-300.0,7.999e-05,2]
[406851672,1772233548843,-2892.0,8e-05,2]
[406851673,1772233548872,-6744.6228,8.02e-05,2]
[406851674,1772233548906,-949407.93676537,8.02e-05,2]
[406851689,1772233831404,-1031.40805716,7.9e-05,2]
[406851691,1772233831414,-216.0,7.9e-05,2]
[406851693,1772233831424,-250.0,7.91e-05,2]
[406851694,1772233831435,-300.0,7.919e-05,2]
[406851695,1772233831446,-1200.0,7.919e-05,2]
[406851696,1772233831456,-727.60380194,7.92e-05,2]
[406851697,1772233831473,-442.20546285,7.92e-05,2]
[406851698,1772233831484,-784.54454562,7.92e-05,2]
[406851699,1772233831495,-2178.82598959,7.92e-05,2]
[406851700,1772233831505,-2172.5348,7.92e-05,2]
[406851701,1772233831514,-13827.5915,7.92e-05,2]
[406851702,1772233831524,-900.0,8e-05,2]
[406851703,1772233831533,-150.0,8.019e-05,2]
[406851704,1772233831542,-35088.19790875,8.02e-05,2]
[406851705,1772233831556,-704.57304315,8.02e-05,2]
[406851706,1772233831567,-50986.02666629,8.02e-05,2]
[406851715,1772233831966,-14502.02478386,8.02e-05,2]
[406851716,1772233831980,-1001.11638947,8.02e-05,2]
[406851717,1772233831991,-1766.92081842,8.02e-05,2]
[406851718,1772233832001,-1470.07670614,8.02e-05,2]
[406851719,1772233832012,-287.06431718,8.02e-05,2]
[406851720,1772233832025,-1555.22270265,8.02e-05,2]
[406851723,1772233837550,-446.26987052,8.02e-05,2]
[406851724,1772233837562,-793.66649967,8.02e-05,2]
[406851725,1772233837611,-941990.90352853,8.02e-05,2]
[406851726,1772233837620,-1112.38910811,8.219e-05,2]
[406851727,1772233837629,-339.66001,8.219e-05,2]
[406851728,1772233837638,-166.66,8.33e-05,2]
[406851729,1772233837647,-200.0,8.42e-05,2]
[406851730,1772233837656,-298.7,8.499e-05,2]
[406851731,1772233837665,-166.66,8.605e-05,2]
[406851732,1772233837674,-11359.72,8.664e-05,2]
[406851733,1772233837684,-500.0,8.673e-05,2]
[406851734,1772233837693,-500.0,8.673e-05,2]
[406851735,1772233837701,-500.0,8.673e-05,2]
[406851736,1772233837710,-500.0,8.673e-05,2]
[406851737,1772233837719,-500.0,8.673e-05,2]
[406851738,1772233837728,-500.0,8.673e-05,2]
[406851739,1772233837737,-500.0,8.673e-05,2]
[406851740,1772233837746,-195.0,8.69e-05,2]
[406851741,1772233837756,-250.0,8.69e-05,2]
[406851742,1772233837766,-1680.0,8.711e-05,2]
[406851743,1772233837775,-250.0,8.712e-05,2]
[406851744,1772233837785,-255.0,8.821e-05,2]
[406851745,1772233837794,-9999.99,8.864e-05,2]
[406851746,1772233837803,-299.99,8.864e-05,2]
[406851747,1772233837813,-150.99,8.864e-05,2]
[406851748,1772233837822,-999.99,8.864e-05,2]
[406851749,1772233837832,-9999.99,8.864e-05,2]
[406851750,1772233837842,-166.66,8.88e-05,2]
[406851751,1772233837851,-433.14315925,8.976e-05,2]
[406851752,1772233837860,-6577.67,9.028e-05,2]
[406851753,1772233837869,-166.66,9.155e-05,2]
[406851754,1772233837878,-1000.0,9.221e-05,2]
[406851755,1772233837887,-200.09788063,9.221e-05,2]
[406851756,1772233837897,-1032.01941831,9.221e-05,2]
[406851757,1772233837909,-1002.07392204,9.221e-05,2]
[406851758,1772233837919,-1000.0,9.221e-05,2]
[406851759,1772233837928,-349.73752759,9.221e-05,2]
[406851761,1772233837937,-1000.0,9.343e-05,2]
[406851762,1772233837947,-500.0,9.43e-05,2]
[406851763,1772233837956,-166.66,9.43e-05,2]
[406851764,1772233837965,-2351.0,9.582e-05,2]
[406851765,1772233837975,-433.0,9.703e-05,2]
[406851766,1772233837985,-500.0,9.704e-05,2]
[406851767,1772233837995,-166.66,9.705e-05,2]
[406851768,1772233838004,-1500.0,9.768e-05,2]
[406851769,1772233838014,-1500.0,9.768e-05,2]
[406851770,1772233838023,-1112.3891081,9.949e-05,3]
[406851771,1772233838032,-28500.66091958,9.95e-05,2]
[406851772,1772233838041,-1000.0,9.969e-05,2]
[406851773,1772233838051,-204545.4292,9.969e-05,2]
[406851774,1772233838061,-20343.2484,9.969e-05,2]
[406851775,1772233838071,-500.0,9.978e-05,2]
[406851776,1772233838081,-1967.31764889,0.0001,2]
[406851777,1772233838090,-726.03500525,0.0001,2]
[406851778,1772233838099,-726.03500525,0.0001,2]
[406851779,1772233838108,-726.03500525,0.0001,2]
[406851780,1772233838118,-151.0,0.0001,2]
[406851781,1772233838127,-151.0,0.0001,2]
[406851782,1772233838136,-151.0,0.0001,2]
[406851784,1772233838146,-151.0,0.0001,2]
[406851786,1772233838155,-151.0,0.0001,2]
[406851788,1772233838164,-151.0,0.0001,2]
[406851789,1772233838174,-151.0,0.0001,2]
[406851790,1772233838184,-151.0,0.0001,2]
[406851791,1772233838194,-151.0,0.0001,2]
[406851792,1772233838203,-151.0,0.0001,2]
[406851793,1772233838212,-151.0,0.0001,2]
[406851794,1772233838221,-151.0,0.0001,2]
[406851795,1772233838230,-208.0,0.0001,2]
[406851796,1772233838239,-1900.0,0.0001,3]
[406851797,1772233838248,-1053.03002661,0.0001,2]
[406851798,1772233838259,-151.0,0.0001,2]
[406851799,1772233838268,-151.0,0.0001,2]
[406851800,1772233838277,-151.0,0.0001,2]
[406851801,1772233838288,-151.0,0.0001,2]
[406851802,1772233838299,-151.0,0.0001,2]
[406851803,1772233838309,-151.0,0.0001,2]
[406851804,1772233838318,-151.0,0.0001,2]
[406851805,1772233838328,-151.0,0.0001,2]
[406851806,1772233838338,-151.0,0.0001,2]
[406851807,1772233838347,-151.0,0.0001,2]
[406851808,1772233838356,-151.0,0.0001,2]
[406851809,1772233838366,-151.0,0.0001,2]
[406851810,1772233838375,-151.0,0.0001,2]
[406851811,1772233838384,-151.0,0.0001,2]
[406851812,1772233838394,-151.0,0.0001,2]
[406851813,1772233838403,-151.0,0.0001,2]
[406851814,1772233838413,-151.0,0.0001,2]
[406851815,1772233838422,-151.0,0.0001,2]
[406851816,1772233838431,-151.0,0.0001,2]
[406851817,1772233838440,-151.0,0.0001,2]
[406851818,1772233838449,-2026.47664966,0.0001,2]
[406851819,1772233838460,-337.0,0.0001,2]
[406851820,1772233838469,-337.0,0.0001,2]
[406851821,1772233838478,-338.83518363,0.0001,2]
[406851822,1772233838487,-158.942266,0.00010057,2]
[406851823,1772233838497,-8939.81,0.00010105,2]
[406851824,1772233838506,-2885.99745702,0.00010145,2]
[406851825,1772233838516,-500.0,0.00010252,2]
[406851826,1772233838525,-500.0,0.000103,2]
[406851827,1772233838535,-575.46584779,0.000103,2]
[406851828,1772233838544,-500.02848491,0.000103,2]
[406851829,1772233838554,-500.0,0.000103,2]
[406851830,1772233838563,-500.0,0.000103,2]
[406851831,1772233838572,-500.0,0.000103,2]
[406851832,1772233838581,-500.0,0.000103,2]
[406851833,1772233838590,-500.0,0.000103,2]
[406851834,1772233838601,-500.0,0.000103,2]
[406851835,1772233838610,-500.0,0.000103,2]
[406851836,1772233838619,-500.0,0.000103,2]